fUSD/lending_fUSD_20260527
["ID","MTS","AMOUNT","RATE_DAILY","PERIOD"]
[423132788,1779875762000,-500.0,0.000378,2]
[423132792,1779875762000,-595.44453774,0.00037838,2]
[423132794,1779875762000,-1024.6556,0.00037884,30]
[423132793,1779875762000,-200.0,0.00037849,10]
[423132795,1779875762000,-928.0,0.00037923,2]
[423132798,1779875762000,-525.0,0.00037923,2]
[423132799,1779875762000,-150.0,0.00037923,2]
[423132802,1779875762000,-418.0,0.00037923,2]
[423132804,1779875762000,-150.0,0.00037946,7]
[423132797,1779875762000,-3548.0,0.00037923,2]
[423132801,1779875762000,-276.0,0.00037923,2]
[423132803,1779875762000,-4948.892983,0.00037938,2]
[423132800,1779875762000,-150.0,0.00037923,2]
[423132806,1779875762000,-152.0,0.00038,120]
[423132805,1779875762000,-153.34026383,0.00037953,4]
[423132807,1779875762000,-285.26081775,0.00038,120]
[423132809,1779875762000,-18911.6605241,0.00038034,2]
[423132808,1779875762000,-160.0,0.00038,120]
[423132750,1779875762000,-200.0,0.00036892,2]
[423132782,1779875762000,-500.0,0.000378,2]
[423132781,1779875762000,-500.0,0.000378,2]
[423132796,1779875762000,-1356.0,0.00037923,2]
[423132776,1779875762000,-1480.52228549,0.0003755,2]
[423132751,1779875762000,-200.0,0.00036892,2]
[423132775,1779875762000,-4948.892983,0.00037476,2]
[423132755,1779875762000,-1480.52228549,0.00036954,2]
[423132753,1779875762000,-200.0,0.00036892,2]
[423132757,1779875762000,-4948.892983,0.00037013,2]
[423132754,1779875762000,-347.0,0.00036892,2]
[423132756,1779875762000,-150.0,0.00036961,7]
[423132759,1779875762000,-151.0,0.00037182,7]
[423132758,1779875762000,-321.0,0.0003709,5]
[423132760,1779875762000,-151.0,0.00037182,7]
[423132764,1779875762000,-1233.91416725,0.00037266,2]
[423132762,1779875762000,-175.27,0.00037226,120]
[423132767,1779875762000,-245.87553872,0.000373,30]
[423132766,1779875762000,-245.87553873,0.000373,30]
[423132761,1779875762000,-156.316428,0.00037182,7]
[423132780,1779875762000,-500.0,0.000378,2]
[423132774,1779875762000,-150.0,0.00037453,7]
[423132763,1779875762000,-274.35646773,0.00037266,2]
[423132779,1779875762000,-500.0,0.000378,2]
[423132777,1779875762000,-12740.13229813,0.00037652,7]
[423132778,1779875762000,-500.0,0.000378,2]
[423132773,1779875762000,-150.0,0.00037453,7]
[423132772,1779875762000,-150.0,0.00037453,7]
[423132771,1779875762000,-400.0,0.00037449,2]
[423132768,1779875762000,-245.87553872,0.000373,30]
[423132769,1779875762000,-198.14908461,0.00037365,2]
[423132765,1779875762000,-168.70807804,0.00037295,2]
[423132770,1779875762000,-784.21676865,0.00037403,120]
[423132852,1779875763000,-500.0,0.00038356,30]
[423132853,1779875763000,-500.0,0.00038356,30]
[423132850,1779875763000,-500.0,0.00038356,30]
[423132851,1779875763000,-500.0,0.00038356,30]
[423132849,1779875763000,-500.0,0.00038356,30]
[423132843,1779875763000,-151.0,0.00038356,7]
[423132847,1779875763000,-500.0,0.00038356,30]
[423132845,1779875763000,-151.489652,0.00038356,7]
[423132846,1779875763000,-500.0,0.00038356,30]
[423132844,1779875763000,-151.0,0.00038356,7]
[423132854,1779875763000,-500.0,0.00038356,30]
[423132848,1779875763000,-500.0,0.00038356,30]
[423132855,1779875763000,-154.85654,0.00038356,30]
[423132870,1779875763000,-151.0,0.00038356,30]
[423132856,1779875763000,-166.483048,0.00038356,30]
[423132858,1779875763000,-164.487155,0.00038356,30]
[423132865,1779875763000,-151.0,0.00038356,30]
[423132862,1779875763000,-217.609166,0.00038356,30]
[423132859,1779875763000,-292.752533,0.00038356,30]
[423132861,1779875763000,-220.678487,0.00038356,30]
[423132860,1779875763000,-288.899692,0.00038356,30]
[423132863,1779875763000,-151.0,0.00038356,30]
[423132864,1779875763000,-151.0,0.00038356,30]
[423132866,1779875763000,-151.0,0.00038356,30]
[423132867,1779875763000,-181.39118,0.00038356,30]
[423132868,1779875763000,-151.0,0.00038356,30]
[423132840,1779875763000,-151.0,0.00038356,7]
[423132857,1779875763000,-176.292006,0.00038356,30]
[423132838,1779875763000,-151.0,0.00038356,7]
[423132816,1779875763000,-1544.0,0.00038098,7]
[423132836,1779875763000,-151.0,0.00038356,7]
[423132813,1779875763000,-9194.779276,0.00038096,2]
[423132869,1779875763000,-151.0,0.00038356,30]
[423132812,1779875763000,-151.0,0.00038043,7]
[423132814,1779875763000,-1544.0,0.00038098,7]
[423132811,1779875763000,-151.0,0.00038043,7]
[423132810,1779875763000,-1020.5299128,0.00038034,2]
[423132815,1779875763000,-1544.0,0.00038098,7]
[423132817,1779875763000,-1544.0,0.00038098,7]
[423132818,1779875763000,-1544.0,0.00038098,7]
[423132819,1779875763000,-152.0,0.00038098,7]
[423132821,1779875763000,-299.20813736,0.000381,33]
[423132820,1779875763000,-152.0,0.00038098,7]
[423132822,1779875763000,-150.0,0.00038111,7]
[423132823,1779875763000,-150.0,0.00038111,7]
[423132827,1779875763000,-285.35178168,0.000382,60]
[423132830,1779875763000,-2601.99,0.000383,2]
[423132828,1779875763000,-8312.5789924,0.00038248,2]
[423132826,1779875763000,-10407.94,0.000382,2]
[423132824,1779875763000,-1480.52228549,0.00038146,2]
[423132825,1779875763000,-2601.99,0.000382,2]
[423132829,1779875763000,-2601.99,0.000383,2]
[423132832,1779875763000,-10407.94,0.000383,2]
[423132831,1779875763000,-10407.94,0.000383,2]
[423132833,1779875763000,-177.683343,0.000383,7]
[423132842,1779875763000,-151.0,0.00038356,7]
[423132834,1779875763000,-151.22014887,0.0003835,120]
[423132841,1779875763000,-151.0,0.00038356,7]
[423132839,1779875763000,-184.12909,0.00038356,7]
[423132837,1779875763000,-151.0,0.00038356,7]
[423132835,1779875763000,-500.0,0.00038355,30]
[423132871,1779875763000,-262.153237,0.00038356,30]
[423132884,1779875763000,-214.890145,0.00038356,30]
[423132876,1779875763000,-151.0,0.00038356,30]
[423132908,1779875763000,-151.0,0.00038356,30]
[423132910,1779875763000,-151.0,0.00038356,30]
[423132918,1779875763000,-1121.007656,0.00038356,30]
[423132909,1779875763000,-151.0,0.00038356,30]
[423132911,1779875763000,-658.175988,0.00038356,30]
[423132919,1779875763000,-1121.007656,0.00038356,30]
[423132912,1779875763000,-658.175988,0.00038356,30]
[423132913,1779875763000,-1121.007656,0.00038356,30]
[423132917,1779875763000,-658.175988,0.00038356,30]
[423132916,1779875763000,-1121.007656,0.00038356,30]
[423132915,1779875763000,-151.0,0.00038356,30]
[423132914,1779875763000,-658.175988,0.00038356,30]
[423132920,1779875763000,-151.0,0.00038356,30]
[423132907,1779875763000,-284.431797,0.00038356,30]
[423132921,1779875763000,-151.0,0.00038356,30]
[423132923,1779875763000,-151.0,0.00038356,30]
[423132933,1779875763000,-1638.113456,0.00038356,30]
[423132930,1779875763000,-1638.113456,0.00038356,30]
[423132922,1779875763000,-151.0,0.00038356,30]
[423132925,1779875763000,-885.475715,0.00038356,30]
[423132926,1779875763000,-1638.113456,0.00038356,30]
[423132929,1779875763000,-885.475715,0.00038356,30]
[423132931,1779875763000,-885.475715,0.00038356,30]
[423132927,1779875763000,-885.475715,0.00038356,30]
[423132932,1779875763000,-1052.334639,0.00038356,30]
[423132928,1779875763000,-1638.113456,0.00038356,30]
[423132934,1779875763000,-1052.334639,0.00038356,30]
[423132935,1779875763000,-827.851664,0.00038356,30]
[423132872,1779875763000,-151.0,0.00038356,30]
[423132902,1779875763000,-1255.114274,0.00038356,30]
[423132924,1779875763000,-197.468081,0.00038356,30]
[423132906,1779875763000,-284.431797,0.00038356,30]
[423132904,1779875763000,-1255.114274,0.00038356,30]
[423132873,1779875763000,-151.0,0.00038356,30]
[423132874,1779875763000,-151.0,0.00038356,30]
[423132881,1779875763000,-151.0,0.00038356,30]
[423132877,1779875763000,-151.0,0.00038356,30]
[423132878,1779875763000,-151.0,0.00038356,30]
[423132875,1779875763000,-151.0,0.00038356,30]
[423132880,1779875763000,-151.0,0.00038356,30]
[423132882,1779875763000,-151.0,0.00038356,30]
[423132883,1779875763000,-191.283968,0.00038356,30]
[423132885,1779875763000,-247.339587,0.00038356,30]
[423132887,1779875763000,-581.019995,0.00038356,30]
[423132889,1779875763000,-516.834816,0.00038356,30]
[423132886,1779875763000,-239.07788742,0.00038356,2]
[423132879,1779875763000,-154.954275,0.00038356,30]
[423132888,1779875763000,-151.0,0.00038356,30]
[423132905,1779875763000,-284.431797,0.00038356,30]
[423132890,1779875763000,-581.019995,0.00038356,30]
[423132900,1779875763000,-1255.114274,0.00038356,30]
[423132901,1779875763000,-1255.114274,0.00038356,30]
[423132903,1779875763000,-284.431797,0.00038356,30]
[423132899,1779875763000,-151.0,0.00038356,30]
[423132898,1779875763000,-516.834816,0.00038356,30]
[423132897,1779875763000,-151.0,0.00038356,30]
[423132896,1779875763000,-581.019995,0.00038356,30]
[423132894,1779875763000,-174.887623,0.00038356,30]
[423132895,1779875763000,-516.834816,0.00038356,30]
[423132891,1779875763000,-516.834816,0.00038356,30]
[423132892,1779875763000,-581.019995,0.00038356,30]
[423132893,1779875763000,-151.0,0.00038356,30]
[423132965,1779875764000,-151.0,0.00038356,30]
[423132956,1779875764000,-639.689567,0.00038356,30]
[423132957,1779875764000,-151.0,0.00038356,30]
[423132958,1779875764000,-151.0,0.00038356,30]
[423132959,1779875764000,-213.900808,0.00038356,30]
[423132953,1779875764000,-263.621434,0.00038356,30]
[423132960,1779875764000,-767.112746,0.00038356,30]
[423132970,1779875764000,-155.336406,0.00038356,30]
[423132962,1779875764000,-767.112746,0.00038356,30]
[423132961,1779875764000,-767.112746,0.00038356,30]
[423132964,1779875764000,-151.0,0.00038356,30]
[423132972,1779875764000,-450.462541,0.00038356,30]
[423132969,1779875764000,-155.336406,0.00038356,30]
[423132955,1779875764000,-639.689567,0.00038356,30]
[423132963,1779875764000,-767.112746,0.00038356,30]
[423132954,1779875764000,-639.689567,0.00038356,30]
[423132936,1779875764000,-1052.334639,0.00038356,30]
[423132950,1779875764000,-151.0,0.00038356,30]
[423132944,1779875764000,-151.0,0.00038356,30]
[423132943,1779875764000,-151.0,0.00038356,30]
[423132942,1779875764000,-151.0,0.00038356,30]
[423132938,1779875764000,-1052.334639,0.00038356,30]
[423132941,1779875764000,-760.437323,0.00038356,30]
[423132940,1779875764000,-827.851664,0.00038356,30]
[423132952,1779875764000,-639.689567,0.00038356,30]
[423132939,1779875764000,-827.851664,0.00038356,30]
[423132945,1779875764000,-760.437323,0.00038356,30]
[423132947,1779875764000,-151.0,0.00038356,30]
[423132946,1779875764000,-760.437323,0.00038356,30]
[423132949,1779875764000,-760.437323,0.00038356,30]
[423132948,1779875764000,-151.0,0.00038356,30]
[423132951,1779875764000,-151.0,0.00038356,30]
[423132937,1779875764000,-827.851664,0.00038356,30]
[423132971,1779875764000,-450.462541,0.00038356,30]
[423132979,1779875764000,-151.0,0.00038356,30]
[423132968,1779875764000,-155.336406,0.00038356,30]
[423132992,1779875764000,-1285.462222,0.00038356,30]
[423132991,1779875764000,-449.035712,0.00038356,30]
[423132990,1779875764000,-450.462541,0.00038356,30]
[423132996,1779875764000,-1285.462222,0.00038356,30]
[423132994,1779875764000,-449.035712,0.00038356,30]
[423132995,1779875764000,-449.035712,0.00038356,30]
[423132998,1779875764000,-449.035712,0.00038356,30]
[423132997,1779875764000,-1285.462222,0.00038356,30]
[423133000,1779875764000,-1285.462222,0.00038356,30]
[423133002,1779875764000,-1285.462222,0.00038356,30]
[423133003,1779875764000,-449.035712,0.00038356,30]
[423133001,1779875764000,-449.035712,0.00038356,30]
[423133004,1779875764000,-533.14843296,0.00038356,30]
[423132973,1779875764000,-155.336406,0.00038356,30]
[423132999,1779875764000,-449.035712,0.00038356,30]
[423132993,1779875764000,-1285.462222,0.00038356,30]
[423132989,1779875764000,-449.035712,0.00038356,30]
[423132987,1779875764000,-1285.462222,0.00038356,30]
[423132966,1779875764000,-151.0,0.00038356,30]
[423132967,1779875764000,-155.336406,0.00038356,30]
[423132975,1779875764000,-450.462541,0.00038356,30]
[423132988,1779875764000,-450.462541,0.00038356,30]
[423132976,1779875764000,-450.462541,0.00038356,30]
[423132977,1779875764000,-155.336406,0.00038356,30]
[423132978,1779875764000,-155.336406,0.00038356,30]
[423132974,1779875764000,-155.336406,0.00038356,30]
[423132982,1779875764000,-450.462541,0.00038356,30]
[423132980,1779875764000,-151.0,0.00038356,30]
[423132983,1779875764000,-450.462541,0.00038356,30]
[423132981,1779875764000,-151.0,0.00038356,30]
[423132986,1779875764000,-230.728076,0.00038356,30]
[423132984,1779875764000,-1285.462222,0.00038356,30]
[423132985,1779875764000,-151.0,0.00038356,30]
[423133011,1779875765000,676.9,0.00019178,2]
[423133005,1779875765000,-150.0,0.00029499,2]
[423133006,1779875765000,676.9,0.00015183,2]
[423133008,1779875765000,676.9,0.00016781,2]
[423133007,1779875765000,676.9,0.00015982,2]
[423133009,1779875765000,676.9,0.0001758,2]
[423133010,1779875765000,676.9,0.00018379,2]
[423133012,1779875765000,676.9,0.00019977,2]
[423133013,1779875765000,261.71,0.00020776,2]
[423133018,1779875765000,676.9,0.00023973,2]
[423133014,1779875765000,415.19,0.00020776,2]
[423133022,1779875765000,153.48,0.0002637,2]
[423133021,1779875765000,523.42,0.0002637,2]
[423133020,1779875765000,676.9,0.00025571,2]
[423133015,1779875765000,676.9,0.00021575,2]
[423133023,1779875765000,676.9,0.00027169,2]
[423133017,1779875765000,676.9,0.00023174,2]
[423133016,1779875765000,676.9,0.00022374,2]
[423133019,1779875765000,676.9,0.00024772,2]
[423133027,1779875766000,-676.9,0.00029566,2]
[423133028,1779875766000,-166.23,0.00030345,2]
[423133026,1779875766000,166.23,0.00028322,2]
[423133024,1779875766000,676.9,0.00027968,2]
[423133025,1779875766000,676.9,0.00028767,2]
[423133029,1779875766000,-676.9,0.00030365,2]
[423133030,1779875767000,-166.23,0.00032367,2]
[423133031,1779875767000,-963.34,0.00033744,2]
[423133033,1779875767000,-1006.0,0.00031,2]
[423133034,1779875767000,-3352.31730192,0.00033744,2]
[423133035,1779875767000,-641.69269808,0.00034364,2]
[423133032,1779875767000,-5000.01,0.00033744,2]
[423133041,1779875768000,-153.0,0.00029719,30]
[423133042,1779875768000,-4847.01,0.00034984,2]
[423133039,1779875768000,-166.23,0.0003439,2]
[423133040,1779875768000,-959.81539618,0.00034984,2]
[423133038,1779875768000,-3873.96460382,0.00034364,2]
[423133037,1779875768000,-4800.01,0.00034364,2]
[423133036,1779875768000,200.0,0.00027237,2]
[423133047,1779875769000,-3508.84190572,0.00034984,2]
[423133043,1779875769000,2000.0,0.00027249,2]
[423133044,1779875769000,-2000.0,0.00030655,120]
[423133045,1779875769000,-1000.01,0.00034061,120]
[423133046,1779875769000,-999.99,0.00034061,120]
[423133048,1779875769000,-151.0,0.00035,7]
[423133054,1779875769000,-862.16665998,0.00035155,2]
[423133051,1779875769000,289.0,0.00021549,2]
[423133053,1779875769000,-1000.0,0.00034042,2]
[423133055,1779875769000,-196.64301011,0.00035192,2]
[423133049,1779875769000,-340.17809428,0.00035155,2]
[423133050,1779875769000,228.57546954,0.00021549,2]
[423133052,1779875769000,-1000.0,0.00032417,2]
[423133065,1779875770000,-926.69657729,0.0003543,2]
[423133064,1779875770000,-4073.31342271,0.00035192,2]
[423133063,1779875770000,-5000.01,0.00035192,2]
[423133060,1779875770000,-1140.35497862,0.0003543,2]
[423133061,1779875770000,-847.09544021,0.0003543,2]
[423133058,1779875770000,183.79221893,0.00010548,2]
[423133062,1779875770000,-2677.28736224,0.00035604,2]
[423133059,1779875770000,-151.48,0.000353,7]
[423133057,1779875770000,-1008.28727282,0.0003543,2]
[423133056,1779875770000,-415.33758755,0.00035192,2]
[423133067,1779875771000,-371.80999094,0.0003543,2]
[423133066,1779875771000,-1291.35379825,0.0003543,2]
[423133070,1779875771000,-215.14109638,0.000295,2]
[423133068,1779875771000,-3336.84621081,0.00035604,2]
[423133069,1779875771000,-215.14109638,0.000295,2]
[423133080,1779875898000,-3718.26771341,0.00030991,10]
[423133079,1779875898000,-42.99771341,0.00031,2]
[423133078,1779875898000,-500.0,0.00031,2]
[423133072,1779875898000,-500.0,0.00031,2]
[423133077,1779875898000,-500.0,0.00031,2]
[423133074,1779875898000,-500.0,0.00031,2]
[423133076,1779875898000,-500.0,0.00031,2]
[423133073,1779875898000,-500.0,0.00031,2]
[423133071,1779875898000,-175.27,0.00026794,2]
[423133075,1779875898000,-500.0,0.00031,2]
[423133084,1779875899000,-1061.75457318,0.00030991,10]
[423133081,1779875899000,-917.16228659,0.00030991,10]
[423133082,1779875899000,-2801.10542682,0.00030991,10]
[423133083,1779875899000,-334.0,0.00013579,2]
[423133086,1779875899000,-1200.0,0.00013578,2]
[423133087,1779875899000,-2060.40277836,0.00020669,2]
[423133088,1779875899000,-457.86493505,0.00026843,2]
[423133085,1779875899000,-2322.51314023,0.00030991,10]
[423133090,1779875900000,-2038.26771341,0.00016429,2]
[423133089,1779875900000,-1680.0,0.00014936,2]
[423133092,1779875900000,-2609.0,0.00018072,2]
[423133093,1779875900000,-170.15,0.00025501,30]
[423133091,1779875900000,-312.73228659,0.00016429,2]
[423133094,1779875900000,-170.15,0.00026172,30]
[423133097,1779875900000,-1225.00963813,0.00026843,2]
[423133099,1779875900000,-2131.45653551,0.00030991,10]
[423133096,1779875900000,-191.65153977,0.00014837,2]
[423133098,1779875900000,-170.15,0.00026843,30]
[423133095,1779875900000,-456.23542682,0.00026843,2]
[423133106,1779875901000,-500.0,0.00031,2]
[423133100,1779875901000,-103.99346449,0.00030991,10]
[423133101,1779875901000,-116.66407026,0.00030991,10]
[423133103,1779875901000,-457.00228659,0.00031,2]
[423133102,1779875901000,-898.38,0.00030991,10]
[423133104,1779875901000,-500.0,0.00031,2]
[423133105,1779875901000,-500.0,0.00031,2]
[423133113,1779875901000,-500.0,0.00031,2]
[423133108,1779875901000,-509.00003,0.00026,2]
[423133112,1779875901000,-500.0,0.00031,2]
[423133109,1779875901000,-141.29228659,0.00031,2]
[423133110,1779875901000,-500.0,0.00031,2]
[423133111,1779875901000,-500.0,0.00031,2]
[423133114,1779875901000,-500.0,0.00031,2]
[423133115,1779875901000,-63.79768341,0.00031,2]
[423133107,1779875901000,-358.70771341,0.00031,2]
[423133118,1779875902000,-500.0,0.00031,2]
[423133117,1779875902000,-500.0,0.00031,2]
[423133119,1779875902000,-500.0,0.00031,2]
[423133116,1779875902000,-436.20231659,0.00031,2]
[423133120,1779875902000,-500.0,0.00031,2]
[423133121,1779875902000,-500.0,0.00031,2]
[423133122,1779875902000,-277.88768341,0.00031,2]
[423133132,1779875903000,-160.0,0.0003,120]
[423133125,1779875903000,-175.27,0.00031233,120]
[423133124,1779875903000,-464.92256561,0.00031001,2]
[423133127,1779875903000,-671.35407191,0.00032,120]
[423133126,1779875903000,-500.0,0.00031357,2]
[423133123,1779875903000,-653.0,0.00031,2]
[423133129,1779875903000,-557.75889941,0.00033,120]
[423133130,1779875903000,-113.5951725,0.00033,120]
[423133131,1779875903000,-191.78446307,0.00033,120]
[423133133,1779875903000,-255.0,0.0003099,2]
[423133128,1779875903000,-191.78446307,0.00032,120]
[423133141,1779875904000,-951.04853498,0.00034436,10]
[423133135,1779875904000,-151.0,0.00033844,7]
[423133139,1779875904000,-1000.0,0.00034299,10]
[423133138,1779875904000,-1000.0,0.00034162,10]
[423133136,1779875904000,-671.35407191,0.000339,120]
[423133134,1779875904000,-151.0,0.00033844,7]
[423133137,1779875904000,-191.78446307,0.000339,120]
[423133140,1779875904000,-48.95146502,0.00034436,10]
[423133143,1779875904000,-1000.0,0.0003471,10]
[423133145,1779875904000,-736.95853498,0.00034847,10]
[423133142,1779875904000,-1000.0,0.00034573,10]
[423133147,1779875904000,-671.35407191,0.00035,120]
[423133149,1779875904000,-167.538512,0.00035,7]
[423133146,1779875904000,-1000.0,0.00034984,10]
[423133148,1779875904000,-151.0,0.00035,7]
[423133151,1779875904000,-295.45441804,0.00035121,10]
[423133152,1779875904000,-500.0,0.00030947,2]
[423133144,1779875904000,-263.04146502,0.00034847,10]
[423133150,1779875904000,-191.78446307,0.00035,120]
[423133155,1779875905000,420.0,0.0002249,2]
[423133156,1779875905000,-500.0,0.00030947,2]
[423133154,1779875905000,300.0,0.00020668,2]
[423133153,1779875905000,-500.0,0.00030947,2]
[423133159,1779875936000,500.0,0.00024174,2]
[423133161,1779875993000,-22.18598028,0.00024174,2]
[423133162,1779876046000,-522.18598028,0.00024174,2]
[423133163,1779876099000,-500.0,0.00024174,2]
[423133164,1779876120000,-500.0,0.00024174,2]
[423133165,1779876140000,-302.21937029,0.00024174,2]
[423133166,1779876200000,-1722.39,0.00024174,2]
[423133173,1779876276000,-720.0,0.00025786,2]
[423133172,1779876276000,-720.0,0.00025786,2]
[423133171,1779876276000,-191.0,0.00025786,2]
[423133170,1779876276000,-529.0,0.00025082,2]
[423133169,1779876276000,-720.0,0.00024174,2]
[423133176,1779876277000,-160.0,0.00026505,2]
[423133175,1779876277000,-91.39,0.00025786,2]
[423133174,1779876277000,-720.0,0.00025786,2]
[423133177,1779876283000,530.5002,0.00026,2]
[423133178,1779876298000,2442.39,0.00024174,2]
[423133179,1779876299000,2442.39,0.00025786,2]
[423133182,1779876439000,-700.17,0.00030137,2]
[423133181,1779876439000,-196.05151697,0.000294,2]
[423133183,1779876439000,-152.0,0.00030326,3]
[423133185,1779876439000,-1839.63034805,0.00030633,2]
[423133184,1779876439000,-309.14389434,0.00030533,109]
[423133191,1779876443000,-1148.54767986,0.00030947,2]
[423133190,1779876443000,-1600.0,0.00030946,2]
[423133188,1779876443000,-208.97895572,0.00030633,2]
[423133189,1779876443000,-400.0,0.00030946,2]
[423133186,1779876443000,-1532.41936845,0.00030633,2]
[423133187,1779876443000,-3315.0323893,0.00030633,2]
[423133192,1779876445000,150.5,0.00016652,2]
[423133193,1779876445000,150.5,0.00017577,2]
[423133198,1779876446000,150.5,0.00022202,2]
[423133197,1779876446000,150.5,0.00021277,2]
[423133196,1779876446000,150.5,0.00020352,2]
[423133195,1779876446000,150.5,0.00019427,2]
[423133194,1779876446000,150.5,0.00018502,2]
[423133199,1779876447000,150.5,0.00023127,2]
[423133200,1779876447000,150.5,0.00024052,2]
[423133203,1779876447000,150.5,0.00026828,2]
[423133202,1779876447000,150.5,0.00025903,2]
[423133201,1779876447000,150.5,0.00024977,2]
[423133205,1779876448000,150.5,0.00028678,2]
[423133204,1779876448000,150.5,0.00027753,2]
[423133206,1779876476000,2477.7298,0.00024174,2]
[423133207,1779876547000,-250.0,0.00014,2]
[423133208,1779876547000,-2385.36997655,0.00024174,2]
[423133209,1779876554000,-453.39022345,0.00024174,2]
[423133210,1779876554000,-3011.80300216,0.00025786,2]
[423133211,1779876561000,-1172.8623877,0.00025786,2]
[423133212,1779876567000,-1098.0704,0.00025786,2]
[423133225,1779876632000,-212.71244923,0.00031001,2]
[423133223,1779876632000,-3916.02776817,0.00030947,2]
[423133220,1779876632000,-78.74642765,0.00030947,2]
[423133221,1779876632000,-456.72894625,0.00030947,2]
[423133222,1779876632000,-5586.94793133,0.00030947,2]
[423133215,1779876632000,-155.2,0.00029717,30]
[423133219,1779876632000,-306.6295551,0.00030537,2]
[423133213,1779876632000,-33.75421014,0.00025786,2]
[423133217,1779876632000,-229.67499128,0.00030537,2]
[423133227,1779876632000,-166.66,0.00031237,30]
[423133214,1779876632000,-150.5,0.00029603,2]
[423133218,1779876632000,-1246.44318682,0.00030537,2]
[423133231,1779876632000,-5000.0,0.00031509,2]
[423133216,1779876632000,-150.5,0.00030528,2]
[423133224,1779876632000,-8464.78481672,0.00030947,2]
[423133233,1779876632000,-166.66,0.00031895,30]
[423133232,1779876632000,-6776.1963463,0.00031523,2]
[423133237,1779876632000,-151.52,0.0003234,32]
[423133235,1779876632000,-912.2920339,0.00032306,2]
[423133234,1779876632000,-167.83851798,0.00032,120]
[423133236,1779876632000,-1393.848,0.0003234,32]
[423133238,1779876632000,-150.5,0.00032378,2]
[423133239,1779876632000,-166.66,0.00032553,30]
[423133240,1779876632000,-1549.71,0.00032597,2]
[423133245,1779876632000,-4175.94,0.00033028,10]
[423133243,1779876632000,-167.83851798,0.00033,120]
[423133241,1779876632000,-304.67,0.00032602,120]
[423133246,1779876632000,-3479.95,0.00033028,10]
[423133229,1779876632000,-150.5,0.00031453,2]
[423133247,1779876633000,-2899.95,0.00033028,10]
[423133248,1779876633000,-2416.63,0.00033028,10]
[423133250,1779876633000,-2503.84395719,0.00033038,2]
[423133249,1779876633000,-9999.99,0.00033038,2]
[423133266,1779876638000,-780.25746773,0.00033037,2]
[423133275,1779876638000,-780.25746773,0.00033037,2]
[423133276,1779876638000,-500.0,0.00033037,7]
[423133273,1779876638000,-500.0,0.00033037,7]
[423133272,1779876638000,-780.25746773,0.00033037,2]
[423133270,1779876638000,-780.25746773,0.00033037,2]
[423133271,1779876638000,-500.0,0.00033037,7]
[423133269,1779876638000,-500.0,0.00033037,7]
[423133268,1779876638000,-780.25746773,0.00033037,2]
[423133267,1779876638000,-500.0,0.00033037,7]
[423133265,1779876638000,-500.0,0.00033037,7]
[423133264,1779876638000,-780.25746773,0.00033037,2]
[423133252,1779876638000,-500.0,0.00033037,7]
[423133262,1779876638000,-780.25746773,0.00033037,2]
[423133260,1779876638000,-780.25746773,0.00033037,2]
[423133261,1779876638000,-500.0,0.00033037,7]
[423133259,1779876638000,-500.0,0.00033037,7]
[423133258,1779876638000,-780.25746773,0.00033037,2]
[423133257,1779876638000,-500.0,0.00033037,7]